Cogmind - Beta 16 @@@ ROGUE MODE // 2025.12.20 @ 17:38:52 Player: beans Result: Destroyed by D-53 Grenadier with Mini Grenade Launcher Performance ------------- Evolutions (0) 0 Regions Visited (4) 800 Robots Destroyed (6) 30 Value Destroyed (116) 116 Prototype IDs (0) 0 Alien Tech Used (0) 0 Bonus (35) 35 TOTAL SCORE: 981 Bonus ------- Follower Combat Kills 35 Cogmind --------- Core Integrity 0/250 Matter 295/300 Energy 99/100 System Corruption 3% Temperature Cool (0) Movement Core (50) Location -9/Mines Parts ------- > --- POWER (1) -------- (None) > --- PROPULSION (2) --- (None) > --- UTILITY (2) ------ (None) > --- WEAPON (2) ------- (None) > --- INVENTORY (5) ---- Fission Core Flexi-carbon Leg Light Assault Rifle Light Cannon Bore Cannon Peak State ------------ > --- POWER ------------ Ion Engine > --- PROPULSION ------- Light Treads Light Treads > --- UTILITY ---------- Heat Sink High-capacity Matter Pod > --- WEAPON ----------- Light Assault Rifle Light Assault Rifle > --- INVENTORY -------- Flexi-carbon Leg Small Laser Light Assault Rifle Light Cannon Bore Cannon [Rating: 8] Favorites ----------- Power Ion Engine Engine Ion Engine Propulsion Light Treads Treads Light Treads Utility Heat Sink Device Heat Sink Storage High-capacity Matter Pod Weapon Light Assault Rifle Ballistic Gun Light Assault Rifle Build | -11 -10 -10 -10 -9 ------- Run | Yrd Mat Min Exi Min Slots Evolved . | . . . . . Power . | . . . . . Propulsion . | . . . . . Utility . | . . . . . Weapon . | . . . . . Parts Attached 7 | 5 1 . 1 . Power 1 | 1 . . . . Engine 1 | 1 . . . . Core . | . . . . . Reactor . | . . . . . Propulsion 2 | 2 . . . . Treads 2 | 2 . . . . Leg . | . . . . . Wheel . | . . . . . Hover . | . . . . . Flight . | . . . . . Utility 2 | . 1 . 1 . Device 1 | . 1 . . . Storage 1 | . . . 1 . Processor . | . . . . . Hackware . | . . . . . Protection . | . . . . . Artifact . | . . . . . Weapon 2 | 2 . . . . Energy Gun . | . . . . . Energy Cannon . | . . . . . Ballistic Gun 2 | 2 . . . . Ballistic Cannon . | . . . . . Launcher . | . . . . . Special Weapon . | . . . . . Impact Weapon . | . . . . . Slashing Weapon . | . . . . . Piercing Weapon . | . . . . . Special Melee Weapon . | . . . . . Unidentified Prototypes . | . . . . . Parts Lost 5 | . . . . 5 Power 1 | . . . . 1 Propulsion 2 | . . . . 2 Utility 1 | . . . . 1 Weapon 1 | . . . . 1 Highest Loss Streak 5 | . . . . 5 To Critical Strikes . | . . . . . Average Backups 3 | 1 1 3 4 4 Power . | . . . . . Propulsion . | . . . . . Utility . | . . . . . Weapon 3 | . 1 3 4 3 Tool/Special . | . . . . . Unused Backups 7 | . . . . 7 Power 1 | . . . . 1 Propulsion 1 | . . . . 1 Utility . | . . . . . Weapon 5 | . . . . 5 Tool/Special . | . . . . . Average Slot Usage (%) 84 | . 78 85 86 77 Engine 13 | . 14 14 14 10 Treads 27 | . 28 28 28 19 Device 13 | . 7 14 14 12 Storage 1 | . . . 1 11 Ballistic Gun 27 | . 28 28 28 22 Peak Build Rating 8 | 5 6 6 7 8 Average Rating 5 | 3 5 6 6 5 On Entrance 4 | . 5 6 6 7 Avg Prop Armor Cover (%) . | . . . . . Naked Turns 13 | . . . . 13 Heaviest Build 12 | 7 8 8 12 12 Greatest Support 40 | 40 40 40 40 40 Greatest Overweight (x) . | . . . . . Average Overweight (x) . | . . . . . Largest Inventory Capacity 5 | 5 5 5 5 5 Average Capacity 5 | 5 5 5 5 5 Most Carried 5 | 4 2 4 5 5 Average Carried 3 | . 1 3 4 4 Final Capacity 5 | 5 5 5 5 5 Final Carried 5 | . 2 4 4 5 Class Distribution -------------------- 100% | Mutant Dominant Class ---------------- Mutant | -10/Materials Mutant | -10/Mines Mutant | -10/Exiles Mutant | -9/Mines Resources | -11 -10 -10 -10 -9 ----------- Run | Yrd Mat Min Exi Min Matter Collected 381 | 123 . 82 164 12 Remotely . | . . . . . Salvage Created 167 | . . 110 . 57 Parts 14 | . . 12 . 2 Haulers Intercepted . | . . . . . Recyclers Shooed 1 | . . 1 . . Parts Field Recycled . | . . . . . Retrieved Matter . | . . . . . Parts Self-Destructed . | . . . . . Prevented . | . . . . . Parts Restored . | . . . . . Kills | -11 -10 -10 -10 -9 ------- Run | Yrd Mat Min Exi Min Combat Hostiles Destroyed 6 | . . 4 . 2 Guns 6 | . . 4 . 2 Classes Destroyed 5 | . . 3 . 2 Builder 1 | . . 1 . . Swarmer 3 | . . 3 . . Grunt 1 | . . 1 . . Duelist 1 | . . . . 1 Assembled 1 | . . . . 1 Best Kill Streak 3 | . . 3 . 1 Combat Bots Only 3 | . . 3 . 1 Max Kills in Single Turn 1 | . . 1 . 1 Gunslinging . | . . . . . Exploded . | . . . . . Melee . | . . . . . Uniques/NPCs Destroyed . | . . . . . Combat | -11 -10 -10 -10 -9 -------- Run | Yrd Mat Min Exi Min Hostile Shots Fired 80 | . . 11 . 69 Missed 23 | . . 4 . 19 Hits 57 | . . 7 . 50 Melee 5 | . . . . 5 Projectile 52 | . . 7 . 45 AOE 1 | . . . . 1 Part Disruptions 1 | . . . . 1 Damage Taken 835 | . . 57 . 778 Core 259 | . . . . 259 Absorbed by Shields . | . . . . . Core Remaining (%) 100 | 100 . . . . Volleys Fired 29 | . 1 10 . 18 Largest 2 | . 2 2 . 2 Hottest 40 | . 40 40 . 40 Shots Fired 58 | . 2 20 . 36 Gun 58 | . 2 20 . 36 Cannon . | . . . . . Launcher . | . . . . . Special . | . . . . . Kinetic 58 | . 2 20 . 36 Thermal . | . . . . . Explosive . | . . . . . Electromagnetic . | . . . . . Robot Hit Streak 7 | . . 4 . 7 Robot Miss Streak 4 | . 2 4 . 4 Penetration Max . | . . . . . Secondary Targets 1 | . . . . 1 Max Gunslinging Chain 1 | . . . . 1 Shots Hit Robots 32 | . . 11 . 21 Core Hits 19 | . . 9 . 10 Critical Kills . | . . . . . Critical Parts Destroyed . | . . . . . Critical Strikes . | . . . . . Melee Attacks . | . . . . . Impact . | . . . . . Slashing . | . . . . . Piercing . | . . . . . Sneak Attacks . | . . . . . Combat Hostiles . | . . . . . Follow-up Attacks . | . . . . . Damage Inflicted 291 | . . 125 . 166 Guns 291 | . . 125 . 166 Cannons . | . . . . . Explosions . | . . . . . Melee . | . . . . . Ramming . | . . . . . Kinetic 291 | . . 125 . 166 Thermal . | . . . . . Explosive . | . . . . . Electromagnetic . | . . . . . Impact . | . . . . . Slashing . | . . . . . Piercing . | . . . . . Highest Corruption 3 | . . . . 3 Average Corruption 3 | . . . . 3 Corruption Purged . | . . . . . Corruption Blocked . | . . . . . Effects 1 | . . . . 1 Matter Fused 1 | . . . . 1 Overload Shots . | . . . . . Overflow Damage . | . . . . . Projectiles . | . . . . . Explosions . | . . . . . Melee . | . . . . . Knockbacks . | . . . . . Impact . | . . . . . Kinetic . | . . . . . Secondary . | . . . . . Self-Inflicted Damage . | . . . . . Shots . | . . . . . Rammed . | . . . . . Targets Rammed . | . . . . . Kicked . | . . . . . Crushed . | . . . . . Highest Temperature . | . . . . . Average Temperature . | . . . . . Received Heat Transfer 118 | . . . . 118 Siege Activations . | . . . . . Martial Activations . | . . . . . Shielding Activations . | . . . . . Robots Disrupted . | . . . . . Combat Hostiles . | . . . . . Robots Corrupted . | . . . . . Combat Hostiles . | . . . . . Parts Fried . | . . . . . Impact Corruptions . | . . . . . Robots Melted . | . . . . . Combat Hostiles . | . . . . . Parts Melted . | . . . . . Heat Transferred . | . . . . . Parts Sabotaged . | . . . . . Parts Stolen . | . . . . . Parts Stripped . | . . . . . Power Chain Reactions . | . . . . . Alert | -11 -10 -10 -10 -9 ------- Run | Yrd Mat Min Exi Min Maximum Alert Level . | . . . . . Low Security (%) 100 | 100 100 100 . 100 Level 1 . | . . . . . Level 2 . | . . . . . Level 3 . | . . . . . Level 4 . | . . . . . Level 5 . | . . . . . High Security . | . . . . . Max Security . | . . . . . Peak Influence 109 | . . 109 . 30 Initial . | . . . . . Average 25 | . . 35 . 7 Influence Increases 169 | . . 139 . 30 Destroy 0b10 Robot/C 120 | . . 100 . 20 Destroy 0b10 Robot/NC 5 | . . 5 . . Destroy Leader 30 | . . 20 . 10 Allied During Kill 14 | . . 14 . . Influence Decreases 169 | . . 139 . 30 Time Decay 169 | . . 139 . 30 Squads Dispatched . | . . . . . Investigation . | . . . . . Extermination . | . . . . . Reinforcement . | . . . . . Assault . | . . . . . Garrison . | . . . . . Intercept . | . . . . . Searches Triggered . | . . . . . Construction Impeded . | . . . . . Haulers Reinforced . | . . . . . Active Scanning Responses . | . . . . . Cargo Convoy Interrupts . | . . . . . Stealth | -11 -10 -10 -10 -9 --------- Run | Yrd Mat Min Exi Min Distress Signals . | . . . . . Communications Jammed . | . . . . . Distress Signals . | . . . . . Times Spotted 19 | . 2 5 . 12 Peak Tracking Total 7 | . 2 3 . 7 Tactical Retreats 1 | . . . . 1 Traps | -11 -10 -10 -10 -9 ------- Run | Yrd Mat Min Exi Min Traps Triggered . | . . . . . Indirectly . | . . . . . Trap Hack Attempts . | . . . . . Triggered . | . . . . . Disarmed . | . . . . . Reprogrammed . | . . . . . Reused . | . . . . . Traps Extracted . | . . . . . Installed . | . . . . . Triggered . | . . . . . Machines | -11 -10 -10 -10 -9 ---------- Run | Yrd Mat Min Exi Min Machines Disabled . | . . . . . Max in Single Turn . | . . . . . Machines Repaired . | . . . . . Machines Dismantled . | . . . . . Machines Sabotaged . | . . . . . Overloaded Fab Kills . | . . . . . Hacking | -11 -10 -10 -10 -9 --------- Run | Yrd Mat Min Exi Min Machines Accessed 4 | . . . 4 . Terminals . | . . . . . Fabricators . | . . . . . Repair Stations . | . . . . . Recycling Units . | . . . . . Scanalyzers . | . . . . . Garrison Access . | . . . . . Total Hacks 4 | . . . 4 . Successful 4 | . . . 4 . Failed . | . . . . . Catastrophic . | . . . . . Database Lockouts . | . . . . . Manual 1 | . . . 1 . Terminals . | . . . . . Fabricators . | . . . . . Repair Stations . | . . . . . Recycling Units . | . . . . . Scanalyzers . | . . . . . Garrison Access . | . . . . . Terminal Hacks 4 | . . . 4 . Record 4 | . . . 4 . Fabricator Hacks . | . . . . . Repair Station Hacks . | . . . . . Recycling Unit Hacks . | . . . . . Scanalyzer . | . . . . . Garrison Access Hacks . | . . . . . Unauthorized Hacks . | . . . . . Terminals . | . . . . . Fabricators . | . . . . . Repair Stations . | . . . . . Recycling Units . | . . . . . Scanalyzers . | . . . . . Garrison Access . | . . . . . Data Cores Recovered . | . . . . . Used . | . . . . . Hacking Detections . | . . . . . Full Trace Events . | . . . . . Feedback Events . | . . . . . Feedback Blocked . | . . . . . Robot Schematics Acquired . | . . . . . Robots Built . | . . . . . Authchips . | . . . . . Time . | . . . . . Total Robot Build Rating . | . . . . . Part Schematics Acquired . | . . . . . Parts Built . | . . . . . Authchips . | . . . . . Time . | . . . . . Total Part Build Rating . | . . . . . Part Studies Acquired . | . . . . . Parts Repaired . | . . . . . Time . | . . . . . Parts Recycled . | . . . . . Recycled Matter . | . . . . . Retrieved Matter . | . . . . . Retrieved Components . | . . . . . Parts Scanalyzed . | . . . . . Part Schematics Acquired . | . . . . . Parts Damaged . | . . . . . Bothacking | -11 -10 -10 -10 -9 ------------ Run | Yrd Mat Min Exi Min Used RIF Installer . | . . . . . Robots Hacked . | . . . . . Non-combat . | . . . . . Combat . | . . . . . Robot Hacks Applied . | . . . . . Relay Couplers Released . | . . . . . Fabnet Peak Effective % . | . . . . . Robots Rewired . | . . . . . Allies Hacked . | . . . . . Hacks Repelled . | . . . . . Allies | -11 -10 -10 -10 -9 -------- Run | Yrd Mat Min Exi Min Total Allies 2 | . . 2 . . Largest Group 2 | . . 2 2 . Highest-Rated Group 46 | . . 46 46 . Highest-Rated Ally 31 | . . 31 31 . Total Orders . | . . . . . Ally Attacks 4 | . . 4 . . Total Damage 78 | . . 78 . . Kills 1 | . . 1 . . Allies Corrupted . | . . . . . Allies Melted . | . . . . . Intel | -11 -10 -10 -10 -9 ------- Run | Yrd Mat Min Exi Min Active Infowar (turns) . | . . . . . Robot Analysis Total . | . . . . . Derelict Logs Recovered . | . . . . . Drone Launches . | . . . . . Drone Recoveries . | . . . . . Exploration | -11 -10 -10 -10 -9 ------------- Run | Yrd Mat Min Exi Min Turns Passed 1323 | 46 71 444 660 102 Spaces Moved 782 | 28 41 241 412 60 Core 51 | 8 . . . 43 Treads 731 | 20 41 241 412 17 Legs . | . . . . . Wheels . | . . . . . Hover . | . . . . . Flight . | . . . . . Fastest Speed 50 | 50 160 160 160 50 Average Speed 152 | 128 160 160 160 81 Slowest Speed 160 | 160 160 160 160 160 Overloaded Moves . | . . . . . Propulsion Burnouts . | . . . . . Robots Hopped . | . . . . . Potential Cave-ins . | . . . . . Cave-ins Triggered . | . . . . . Exploration Rate (%) 36 | 3 13 57 89 20 Regions Visited 4 Branch Regions 3 Pre-discovered Areas . | . . . . . Known Exits Taken . | . . . . . Unknown Exits Taken 4 | 1 1 1 1 . Scrap Searched 1 | . . 1 . . Spaces Dug . | . . . . . Terrain Destroyed . | . . . . . Melee . | . . . . . Projectile . | . . . . . AOE . | . . . . . Terrain Rammed . | . . . . . Walls Destroyed . | . . . . . Machines Disabled . | . . . . . Actions | -11 -10 -10 -10 -9 --------- Run | Yrd Mat Min Exi Min Total 866 | 38 45 284 413 86 Wait 34 | 1 . 32 . 1 Move 778 | 27 40 240 411 60 Hop . | . . . . . Pick Up 14 | 5 3 2 1 3 Fast Attach . | . . . . . Attach 7 | 5 1 . 1 . Detach . | . . . . . Swap . | . . . . . Drop 4 | . . . . 4 Fire 29 | . 1 10 . 18 Melee . | . . . . . Ram . | . . . . . Kick . | . . . . . Crush . | . . . . . Escape Stasis . | . . . . . Rewire . | . . . . . Trap . | . . . . . Miscellaneous . | . . . . . Route ------- -11/Scrapyard -10/Materials -10/Mines (discovered 3 exits: [*Mat x2] / *Exi) -10/Exiles (discovered 2 exits: [*Min x2]) -9/Mines History --------- Turn | Location | Event 2 | -11/Scrapyard | Met Revision 17 6 | -11/Scrapyard | Discovered new exit (range 15) 47 | -11/Scrapyard | Entered Materials 103 | -10/Materials | Discovered new exit (range 9) 118 | -10/Materials | Entered Mines 163 | -10/Mines | Discovered new exit (range 6) 216 | -10/Mines | Discovered new exit (range 10) 302 | -10/Mines | Build established: Mutant 531 | -10/Mines | Deemed a non-threat by the Exiles lab entrance 532 | -10/Mines | Discovered new exit (range 5) 562 | -10/Mines | Entered Exiles 562 | -10/Exiles | Found Exiles lab abandoned 562 | -10/Exiles | Accompanied by 2 allies 585 | -10/Exiles | Discovered new exit (range 15) 592 | -10/Exiles | Led the pair of lost Derelicts to a safe place 1203 | -10/Exiles | Discovered new exit (range 12) 1222 | -10/Exiles | Entered Mines 1223 | -9/Mines | Assembled infested the area 1228 | -9/Mines | Assisted by a Guerilla fighting off Assembled 1302 | -9/Mines | Core integrity fell below 50% 1316 | -9/Mines | Core integrity fell below 20% 1324 | -9/Mines | Destroyed by D-53 Grenadier with Mini Grenade Launcher Last Messages --------------- Acquired 2 matter. Acquired Flexi-carbon Leg. Dropped Lgt. Assault Rifle. Acquired Bore Cannon. Dropped Sml. Laser. Acquired Fission Core. G-34 Mercenary destroyed. Lgt. Treads destroyed. as-78803 destroyed. Lgt. Treads destroyed. Knocked back. Ion Engine destroyed. System corrupted by crushing effect (+3). Knocked back. Dropped Lgt. Assault Rifle. Dropped Hcp. Matter Pod. Knocked back. Lgt. Assault Rifle destroyed. Heat Sink destroyed. System corrupted: Matter fused (-5). Map ----- +----------------------------------------------------+ | ????????????# #??????????????????? | | ????????????# ##?????????????????? | | ????????????## [ ####??????????????? | | ?????????????## ! ##?????????????? | | ??????????????## #?????????????? | | ???????######### #?????????????? | | ???????# # #?????????????? | | ??????## """ ## ##?????????????? | | ??????# """ ### ##??????????????? | | ??????# """* ###%###???????????????? | | ???????# !%*[% #?????????????????? | | ???????#% = ! #?????????????????? | | ???????# =!% #####?????????????????? | | ???????# % ![ #?????????????????????? | | ???????# ! #?????????????????????? | | ???????#### ####?????????????????????? | | ??????????# #????????###?????????????? | | ??????????# #???????# ##????????????? | | ??????????# #??????# ###??????????? | | ??????????# #?????# uu ??????????? | | ???#??????# ###?? ?????????? | | ??## ????# #? ?????????? | | ??# ??### # r td #????????? | | ??# ### # d #????????? | | ??# r #????????? | | ???# < @ #????????? | | ???### ## ????????? | | ?????## #?? ????????? | | ??????## #???# #?????????? | | ???????###?????# #?????????? | | ???????????????? # ??????????? | | ???????????????? ##????????????? | | ?????????????????## ##?????????????? | | ???????????????????#$ #??????????????? | | ???????????????????? #??????????????? | | ????????????????????? #??????????????? | | ??????????????????????|??????????????? | | ?????????????????????????????????????? | | ?????????????????????????????????????? | | ?????????????????????????????????????? | | ?????????????????????????????????????? | | ?????????????????????????????????????? | | ?????????????????????????????????????? | | ?????????????????????????????????????? | | ?????????????????????????????????????? | | ?????????????????????????????????????? | | ?????????????????????????????????????? | | ?????????????????????????????????????? | | ?????????????????????????????????????? | | ?????????????????????????????????????? | +----------------------------------------------------+ Best States ------------- Heat Dissipation 35 Energy Generation 10 Energy Capacity 250 Matter Stores 500 Matter Capacity 500 Sight Range 16 Terrain Scan Density 10 Evasion (%) 50 Recoil Reduction 2 Item Schematics ----------------- None Robot Schematics ------------------ None Fabricated ------------ Nothing Repaired ---------- Nothing Studied --------- None Alien Tech Used ----------------- None Achievements -------------- None Challenges ------------ None Game ------ Seed FusionReflexGravjet Manual? 0 Play Time 00:12:23 Cumulative 222.7 hours Start 2025.12.11 @ 21:04:17 End 2025.12.20 @ 17:38:52 Sessions 1 Manual Loads 0 Difficulty Rogue Special Mode None Game No. 628 Rogue 627 Adventurer 1 Explorer 0 Win Type - Total 0 Types 0/0/0/0/0/0/0/0/0/0 Lore% 65 Gallery% 62 Achievement% 38 Wizard Run 0 Options --------- Layout 1 ASCII 1 Keyboard 0 Movement Mouse Keybinds 0 Fullscreen 1 Font 48/Smallcaps Map View 50x35 Zoom Use 0% Tactical HUD 0 Map Filters NONE Filters NONE Steam 1 RUN: 1df2951c-e3c9-4b86-9db7-9dbb25f59246